[Event "*** SCC Grand Prix: Titled Tuesday Blitz"]
[Site "Chess.com"]
[Date "2020.06.23"]
[Round "6"]
[White "crossingthestreet"]
[Black "talaicito"]
[Result "0-1"]
[WhiteElo "2367"]
[BlackElo "2124"]
[TimeControl "180+1"]
[EndTime "11:07:39 PDT"]
[Termination "talaicito won on time"]

1. d4 {[%clk 0:03:00.9]} 1... e6 {[%clk 0:03:00.1]} 2. Bf4 {[%clk 0:03:00.5]}
2... f5 {[%clk 0:03:00.4]} 3. Nc3 {[%clk 0:02:59.1]} 3... Nf6 {[%clk 0:03:01]}
4. f3 {[%clk 0:02:55.3]} 4... Bb4 {[%clk 0:02:59.3]} 5. Bd2 {[%clk 0:02:51]}
5... O-O {[%clk 0:02:55.9]} 6. a3 {[%clk 0:02:50.5]} 6... Bxc3 {[%clk
0:02:49.3]} 7. Bxc3 {[%clk 0:02:51.4]} 7... d6 {[%clk 0:02:49.1]} 8. e3 {[%clk
0:02:46]} 8... Nc6 {[%clk 0:02:47]} 9. Bc4 {[%clk 0:02:41.8]} 9... Kh8 {[%clk
0:02:43.4]} 10. Nh3 {[%clk 0:02:42.1]} 10... e5 {[%clk 0:02:35.4]} 11. Ng5
{[%clk 0:02:37.5]} 11... Qe8 {[%clk 0:02:30.4]} 12. O-O {[%clk 0:02:24.8]} 12...
h6 {[%clk 0:02:13.3]} 13. Nh3 {[%clk 0:02:24.2]} 13... f4 {[%clk 0:02:03.5]} 14.
Nf2 {[%clk 0:01:32.8]} 14... fxe3 {[%clk 0:01:57.9]} 15. Ng4 {[%clk 0:01:33.2]}
15... exd4 {[%clk 0:01:39.5]} 16. Nxf6 {[%clk 0:01:25.6]} 16... Rxf6 {[%clk
0:01:36.2]} 17. Bxd4 {[%clk 0:01:25.8]} 17... Nxd4 {[%clk 0:01:33.6]} 18. Qxd4
{[%clk 0:01:26.7]} 18... Be6 {[%clk 0:01:26]} 19. Bd3 {[%clk 0:01:22.6]} 19...
Bf5 {[%clk 0:01:18.9]} 20. Rae1 {[%clk 0:01:20.2]} 20... Bxd3 {[%clk 0:01:17.9]}
21. Qxd3 {[%clk 0:01:21.1]} 21... Re6 {[%clk 0:01:16.5]} 22. Re2 {[%clk
0:01:21.3]} 22... Qe7 {[%clk 0:01:16.7]} 23. Rfe1 {[%clk 0:01:21.5]} 23... Re8
{[%clk 0:01:16.7]} 24. c4 {[%clk 0:01:18.5]} 24... Qg5 {[%clk 0:01:04.3]} 25. b3
{[%clk 0:01:07]} 25... a5 {[%clk 0:00:59.2]} 26. b4 {[%clk 0:01:06]} 26... axb4
{[%clk 0:00:49.2]} 27. axb4 {[%clk 0:01:06.9]} 27... b6 {[%clk 0:00:48]} 28. Qc3
{[%clk 0:01:03.9]} 28... Qe5 {[%clk 0:00:41.2]} 29. Qxe5 {[%clk 0:00:54.2]}
29... Rxe5 {[%clk 0:00:42.1]} 30. g3 {[%clk 0:00:54.1]} 30... g5 {[%clk
0:00:40.6]} 31. Kg2 {[%clk 0:00:54.2]} 31... Kg7 {[%clk 0:00:40.1]} 32. Rc1
{[%clk 0:00:48.4]} 32... Kg6 {[%clk 0:00:38]} 33. Rc3 {[%clk 0:00:48.7]} 33...
Kf5 {[%clk 0:00:36.6]} 34. h3 {[%clk 0:00:46.7]} 34... h5 {[%clk 0:00:35.5]} 35.
Ra3 {[%clk 0:00:43.8]} 35... R8e7 {[%clk 0:00:32.2]} 36. Rc3 {[%clk 0:00:43.5]}
36... Re8 {[%clk 0:00:29.8]} 37. Ra3 {[%clk 0:00:43.2]} 37... R8e7 {[%clk
0:00:27.6]} 38. Rc3 {[%clk 0:00:43.4]} 38... g4 {[%clk 0:00:24.1]} 39. hxg4+
{[%clk 0:00:38.3]} 39... hxg4 {[%clk 0:00:24.2]} 40. Ra3 {[%clk 0:00:38.5]}
40... gxf3+ {[%clk 0:00:16.5]} 41. Kxf3 {[%clk 0:00:38.1]} 41... Kg5 {[%clk
0:00:14.8]} 42. Raxe3 {[%clk 0:00:35.8]} 42... Rf7+ {[%clk 0:00:14.2]} 43. Kg2
{[%clk 0:00:34.7]} 43... Rxe3 {[%clk 0:00:11.5]} 44. Rxe3 {[%clk 0:00:35.6]}
44... Kg4 {[%clk 0:00:10.4]} 45. Re4+ {[%clk 0:00:35.2]} 45... Kg5 {[%clk
0:00:10.7]} 46. b5 {[%clk 0:00:33.2]} 46... Rf5 {[%clk 0:00:09.1]} 47. g4 {[%clk
0:00:30.6]} 47... Rc5 {[%clk 0:00:08.9]} 48. Kg3 {[%clk 0:00:30.2]} 48... Kf6
{[%clk 0:00:05.7]} 49. Kf4 {[%clk 0:00:29.6]} 49... d5 {[%clk 0:00:05.6]} 50.
cxd5 {[%clk 0:00:27.5]} 50... Rxd5 {[%clk 0:00:05.9]} 51. g5+ {[%clk 0:00:26]}
51... Rxg5 {[%clk 0:00:04.8]} 52. Rc4 {[%clk 0:00:22.2]} 52... Rc5 {[%clk
0:00:05]} 53. Rb4 {[%clk 0:00:19.3]} 53... Ke6 {[%clk 0:00:05.1]} 54. Ke4 {[%clk
0:00:19.8]} 54... Kd6 {[%clk 0:00:05.4]} 55. Kd4 {[%clk 0:00:19.6]} 55... Rc1
{[%clk 0:00:05.2]} 56. Ra4 {[%clk 0:00:18.2]} 56... Rc5 {[%clk 0:00:03.5]} 57.
Rb4 {[%clk 0:00:17.7]} 57... Rc1 {[%clk 0:00:03.6]} 58. Ra4 {[%clk 0:00:16.9]}
58... c5+ {[%clk 0:00:03.9]} 59. bxc6 {[%clk 0:00:14.8]} 59... Kxc6 {[%clk
0:00:03.7]} 60. Ra2 {[%clk 0:00:13.9]} 60... b5 {[%clk 0:00:03.5]} 61. Rh2
{[%clk 0:00:13.9]} 61... Rc4+ {[%clk 0:00:02.8]} 62. Kd3 {[%clk 0:00:13.6]}
62... Kc5 {[%clk 0:00:03.2]} 63. Rh8 {[%clk 0:00:10.4]} 63... Kb4 {[%clk
0:00:03.3]} 64. Rb8 {[%clk 0:00:10.5]} 64... Rc5 {[%clk 0:00:03]} 65. Kd4 {[%clk
0:00:08.5]} 65... Rh5 {[%clk 0:00:03.1]} 66. Kd3 {[%clk 0:00:08.1]} 66... Kb3
{[%clk 0:00:03.4]} 67. Kd2 {[%clk 0:00:06]} 67... Kb2 {[%clk 0:00:02]} 68. Kd3
{[%clk 0:00:02]} 68... Rh3+ {[%clk 0:00:02.1]} 0-1

[Event "*** SCC Grand Prix: Titled Tuesday Blitz"]
[Site "Chess.com"]
[Date "2020.06.23"]
[Round "6"]
[White "Hangar-18"]
[Black "FMalexhdez"]
[Result "1-0"]
[WhiteElo "2346"]
[BlackElo "2113"]
[TimeControl "180+1"]
[EndTime "11:07:40 PDT"]
[Termination "Hangar-18 won on time"]

1. c4 {[%clk 0:03:00.4]} 1... e5 {[%clk 0:02:58.3]} 2. g3 {[%clk 0:03:00.2]}
2... Nf6 {[%clk 0:02:57.2]} 3. Bg2 {[%clk 0:03:00.6]} 3... d5 {[%clk 0:02:57.9]}
4. cxd5 {[%clk 0:03:00.5]} 4... Nxd5 {[%clk 0:02:58.5]} 5. Nc3 {[%clk
0:03:01.4]} 5... Nb6 {[%clk 0:02:58.1]} 6. e3 {[%clk 0:02:55.5]} 6... Nc6 {[%clk
0:02:58.6]} 7. Nge2 {[%clk 0:02:55]} 7... Be7 {[%clk 0:02:57.7]} 8. O-O {[%clk
0:02:53.5]} 8... O-O {[%clk 0:02:56.7]} 9. f4 {[%clk 0:02:52.9]} 9... exf4
{[%clk 0:02:29.1]} 10. Nxf4 {[%clk 0:02:53.8]} 10... Nc4 {[%clk 0:02:21]} 11. b3
{[%clk 0:02:51.4]} 11... N4e5 {[%clk 0:02:20.6]} 12. d4 {[%clk 0:02:51.5]} 12...
Bg4 {[%clk 0:02:20.2]} 13. Qd2 {[%clk 0:02:48.4]} 13... Ng6 {[%clk 0:02:19.6]}
14. Bb2 {[%clk 0:02:46.5]} 14... Qd7 {[%clk 0:02:06.8]} 15. Ncd5 {[%clk
0:02:42.5]} 15... Bd6 {[%clk 0:01:59]} 16. Rac1 {[%clk 0:02:28.8]} 16... h5
{[%clk 0:01:56.2]} 17. Qf2 {[%clk 0:02:27.5]} 17... h4 {[%clk 0:01:27.6]} 18. h3
{[%clk 0:02:19.4]} 18... Nxf4 {[%clk 0:01:23.4]} 19. Nxf4 {[%clk 0:02:16.3]}
19... Bxf4 {[%clk 0:01:22.6]} 20. gxf4 {[%clk 0:02:11.3]} 20... Bxh3 {[%clk
0:01:22.6]} 21. Qxh4 {[%clk 0:02:12]} 21... Bxg2 {[%clk 0:01:20.5]} 22. Kxg2
{[%clk 0:02:12.9]} 22... Qd5+ {[%clk 0:01:15.5]} 23. Rf3 {[%clk 0:01:53.5]}
23... Rae8 {[%clk 0:01:12]} 24. Rh1 {[%clk 0:01:52.4]} 24... f6 {[%clk
0:01:12.2]} 25. Ba3 {[%clk 0:01:43.5]} 25... Ne7 {[%clk 0:00:53.7]} 26. Qh5
{[%clk 0:00:50.9]} 26... Qxh5 {[%clk 0:00:36.8]} 27. Rxh5 {[%clk 0:00:51.8]}
27... Kf7 {[%clk 0:00:34.2]} 28. Kf2 {[%clk 0:00:44.6]} 28... Rh8 {[%clk
0:00:33.6]} 29. Rfh3 {[%clk 0:00:44.1]} 29... Rxh5 {[%clk 0:00:32.6]} 30. Rxh5
{[%clk 0:00:45]} 30... c6 {[%clk 0:00:31.3]} 31. e4 {[%clk 0:00:43.9]} 31... Ng6
{[%clk 0:00:30.9]} 32. Ke3 {[%clk 0:00:40.9]} 32... Rh8 {[%clk 0:00:26.6]} 33.
Rxh8 {[%clk 0:00:38.7]} 33... Nxh8 {[%clk 0:00:26.6]} 34. f5 {[%clk 0:00:39.6]}
34... g6 {[%clk 0:00:26.5]} 35. Kf4 {[%clk 0:00:40.1]} 35... gxf5 {[%clk
0:00:22.6]} 36. Kxf5 {[%clk 0:00:39]} 36... Ng6 {[%clk 0:00:22]} 37. Bd6 {[%clk
0:00:37.6]} 37... Nh4+ {[%clk 0:00:17.6]} 38. Kg4 {[%clk 0:00:33.5]} 38... Ng2
{[%clk 0:00:17.5]} 39. Bb8 {[%clk 0:00:29.4]} 39... a6 {[%clk 0:00:16.5]} 40.
Kf3 {[%clk 0:00:27.9]} 40... Nh4+ {[%clk 0:00:15.7]} 41. Kg3 {[%clk 0:00:26.1]}
41... Ng6 {[%clk 0:00:15.5]} 42. Kg4 {[%clk 0:00:26.7]} 42... Ke6 {[%clk
0:00:15.1]} 43. Kh5 {[%clk 0:00:25.3]} 43... Nf8 {[%clk 0:00:14.3]} 44. Kg4
{[%clk 0:00:24.5]} 44... Nd7 {[%clk 0:00:14]} 45. Bc7 {[%clk 0:00:22.8]} 45...
b5 {[%clk 0:00:11.4]} 46. b4 {[%clk 0:00:22.1]} 46... Nf8 {[%clk 0:00:10.4]} 47.
Kh5 {[%clk 0:00:17]} 47... Nh7 {[%clk 0:00:09.5]} 48. Kg6 {[%clk 0:00:16]} 48...
Ng5 {[%clk 0:00:09.5]} 49. e5 {[%clk 0:00:16.3]} 49... fxe5 {[%clk 0:00:08]} 50.
Kxg5 {[%clk 0:00:16.3]} 50... exd4 {[%clk 0:00:08.9]} 51. Kf4 {[%clk 0:00:13.2]}
51... Kd5 {[%clk 0:00:09.1]} 52. Kf3 {[%clk 0:00:09.6]} 52... c5 {[%clk
0:00:08.9]} 53. a3 {[%clk 0:00:05.3]} 53... d3 {[%clk 0:00:04.5]} 54. Ke3 {[%clk
0:00:05.3]} 54... cxb4 {[%clk 0:00:03.4]} 55. axb4 {[%clk 0:00:06.2]} 55... Kc4
{[%clk 0:00:03.8]} 56. Bd6 {[%clk 0:00:03.2]} 56... Kc3 {[%clk 0:00:01.3]} 57.
Bc5 {[%clk 0:00:02]} 1-0

[Event "*** SCC Grand Prix: Titled Tuesday Blitz"]
[Site "Chess.com"]
[Date "2020.06.23"]
[Round "6"]
[White "Vaathi_Coming"]
[Black "lilleper1"]
[Result "1-0"]
[WhiteElo "2853"]
[BlackElo "2689"]
[TimeControl "180+1"]
[EndTime "11:07:44 PDT"]
[Termination "Vaathi_Coming won by resignation"]

1. g3 {[%clk 0:03:00.9]} 1... c5 {[%clk 0:02:59.4]} 2. Bg2 {[%clk 0:02:59.5]}
2... Nc6 {[%clk 0:02:59.4]} 3. c4 {[%clk 0:02:59.5]} 3... g6 {[%clk 0:02:59.4]}
4. Nc3 {[%clk 0:02:59.1]} 4... Bg7 {[%clk 0:02:59.9]} 5. d3 {[%clk 0:02:56.5]}
5... e6 {[%clk 0:02:57]} 6. Bxc6 {[%clk 0:02:56.6]} 6... dxc6 {[%clk 0:02:54]}
7. f4 {[%clk 0:02:55.6]} 7... Ne7 {[%clk 0:02:50.6]} 8. Nf3 {[%clk 0:02:55.4]}
8... O-O {[%clk 0:02:50.5]} 9. Qd2 {[%clk 0:02:52.5]} 9... Nf5 {[%clk
0:02:48.7]} 10. b3 {[%clk 0:02:43.4]} 10... Nd4 {[%clk 0:02:47.9]} 11. Bb2
{[%clk 0:02:29.6]} 11... Nxf3+ {[%clk 0:02:46.6]} 12. exf3 {[%clk 0:02:30.5]}
12... e5 {[%clk 0:02:45.1]} 13. fxe5 {[%clk 0:02:21.7]} 13... Bxe5 {[%clk
0:02:43.1]} 14. O-O-O {[%clk 0:02:22.3]} 14... Be6 {[%clk 0:02:14.1]} 15. Ne4
{[%clk 0:02:19.5]} 15... Bd4 {[%clk 0:02:12.7]} 16. h4 {[%clk 0:01:52.7]} 16...
a5 {[%clk 0:01:58.2]} 17. h5 {[%clk 0:01:47.2]} 17... a4 {[%clk 0:01:54.1]} 18.
b4 {[%clk 0:00:56.3]} 18... cxb4 {[%clk 0:01:38.3]} 19. Qxb4 {[%clk 0:00:52.8]}
19... a3 {[%clk 0:01:29.6]} 20. Bxd4 {[%clk 0:00:50.5]} 20... Qxd4 {[%clk
0:01:29.6]} 21. Kc2 {[%clk 0:00:31.2]} 21... b5 {[%clk 0:01:22.4]} 22. Qc3
{[%clk 0:00:29.5]} 22... Qxc3+ {[%clk 0:01:18.9]} 23. Kxc3 {[%clk 0:00:30.4]}
23... Ra4 {[%clk 0:01:03.9]} 24. Nc5 {[%clk 0:00:28.4]} 24... Ra7 {[%clk
0:00:53]} 25. hxg6 {[%clk 0:00:27.4]} 25... hxg6 {[%clk 0:00:51.2]} 26. Rh6
{[%clk 0:00:25.8]} 26... Kg7 {[%clk 0:00:48.6]} 27. Rdh1 {[%clk 0:00:25.5]}
27... Kf6 {[%clk 0:00:45.3]} 28. R6h4 {[%clk 0:00:15.1]} 28... bxc4 {[%clk
0:00:38.4]} 29. Rf4+ {[%clk 0:00:15.2]} 29... Kg7 {[%clk 0:00:23.6]} 30. Nxe6+
{[%clk 0:00:09.4]} 30... fxe6 {[%clk 0:00:23.1]} 31. Rxf8 {[%clk 0:00:09.9]}
31... Kxf8 {[%clk 0:00:22.9]} 32. dxc4 {[%clk 0:00:09.2]} 32... Rf7 {[%clk
0:00:19.2]} 33. Rf1 {[%clk 0:00:05.3]} 33... Rb7 {[%clk 0:00:19.1]} 34. Rf2
{[%clk 0:00:05.4]} 34... Ke7 {[%clk 0:00:19]} 35. Rd2 {[%clk 0:00:05]} 35... c5
{[%clk 0:00:18.1]} 36. Rh2 {[%clk 0:00:04]} 36... Kf6 {[%clk 0:00:17.6]} 37. Rd2
{[%clk 0:00:04]} 37... Ke7 {[%clk 0:00:17.3]} 38. Re2 {[%clk 0:00:04.3]} 38...
Kf6 {[%clk 0:00:17.6]} 39. Rh2 {[%clk 0:00:04.6]} 39... Kf5 {[%clk 0:00:17]} 40.
Rd2 {[%clk 0:00:03.8]} 40... Kf6 {[%clk 0:00:17.1]} 41. Kd3 {[%clk 0:00:03.6]}
41... Rb4 {[%clk 0:00:14.1]} 42. Rc2 {[%clk 0:00:02.5]} 42... Rb1 {[%clk
0:00:13.7]} 43. Kc3 {[%clk 0:00:02.2]} 43... Rb4 {[%clk 0:00:12.9]} 44. Kd3
{[%clk 0:00:02.4]} 44... Rb1 {[%clk 0:00:13]} 45. Rc3 {[%clk 0:00:02.7]} 45...
Rd1+ {[%clk 0:00:12.4]} 46. Ke2 {[%clk 0:00:02.9]} 46... Rd4 {[%clk 0:00:11.4]}
47. Ke3 {[%clk 0:00:03.3]} 47... g5 {[%clk 0:00:10.9]} 48. Rxa3 {[%clk
0:00:03.1]} 48... Rxc4 {[%clk 0:00:11.2]} 49. Ra8 {[%clk 0:00:03.3]} 49... Rc3+
{[%clk 0:00:09.8]} 50. Ke2 {[%clk 0:00:03.7]} 50... Ke5 {[%clk 0:00:09.4]} 51.
a4 {[%clk 0:00:03.5]} 51... Rc2+ {[%clk 0:00:09.3]} 52. Kd3 {[%clk 0:00:03.4]}
52... Ra2 {[%clk 0:00:09.5]} 53. a5 {[%clk 0:00:03.6]} 53... Ra3+ {[%clk
0:00:09.8]} 54. Ke2 {[%clk 0:00:03.3]} 54... c4 {[%clk 0:00:10.3]} 55. a6 {[%clk
0:00:03.7]} 55... Ra2+ {[%clk 0:00:10.5]} 56. Ke3 {[%clk 0:00:03.6]} 56... Ra3+
{[%clk 0:00:10.9]} 57. Ke2 {[%clk 0:00:03.7]} 57... Ra2+ {[%clk 0:00:08.7]} 58.
Kd1 {[%clk 0:00:02.8]} 58... c3 {[%clk 0:00:08.5]} 59. a7 {[%clk 0:00:02.8]}
59... Ra1+ {[%clk 0:00:04.9]} 60. Kc2 {[%clk 0:00:03.1]} 60... Ra3 {[%clk
0:00:05.4]} 61. f4+ {[%clk 0:00:02.9]} 61... gxf4 {[%clk 0:00:05.1]} 62. gxf4+
{[%clk 0:00:03.8]} 62... Ke4 {[%clk 0:00:04.7]} 63. f5 {[%clk 0:00:04.3]} 63...
Kxf5 {[%clk 0:00:01.8]} 64. Rf8+ {[%clk 0:00:04]} 64... Ke5 {[%clk 0:00:02.7]}
65. a8=Q {[%clk 0:00:04.4]} 65... Rxa8 {[%clk 0:00:03.1]} 66. Rxa8 {[%clk
0:00:05.2]} 1-0

[Event "*** SCC Grand Prix: Titled Tuesday Blitz"]
[Site "Chess.com"]
[Date "2020.06.23"]
[Round "6"]
[White "crazy_but_lazy"]
[Black "chessplayer9919"]
[Result "1/2-1/2"]
[WhiteElo "2321"]
[BlackElo "2515"]
[TimeControl "180+1"]
[EndTime "11:07:46 PDT"]
[Termination "Game drawn by repetition"]

1. d4 {[%clk 0:03:00.9]} 1... Nf6 {[%clk 0:02:57.3]} 2. c4 {[%clk 0:03:00.8]}
2... c5 {[%clk 0:02:58.2]} 3. Nf3 {[%clk 0:02:59.6]} 3... cxd4 {[%clk
0:02:55.8]} 4. Nxd4 {[%clk 0:03:00.5]} 4... Nc6 {[%clk 0:02:56.7]} 5. g3 {[%clk
0:02:59.8]} 5... e6 {[%clk 0:02:53]} 6. Bg2 {[%clk 0:02:59]} 6... Be7 {[%clk
0:02:53.5]} 7. O-O {[%clk 0:02:58.5]} 7... O-O {[%clk 0:02:53.9]} 8. Nc3 {[%clk
0:02:58.8]} 8... a6 {[%clk 0:02:54.4]} 9. b3 {[%clk 0:02:56.2]} 9... Qc7 {[%clk
0:02:52.3]} 10. Bb2 {[%clk 0:02:55.5]} 10... d6 {[%clk 0:02:50.5]} 11. Qd2
{[%clk 0:02:48.8]} 11... Bd7 {[%clk 0:02:43.5]} 12. Rac1 {[%clk 0:02:45.2]}
12... Nxd4 {[%clk 0:02:41.4]} 13. Qxd4 {[%clk 0:02:45]} 13... Rac8 {[%clk
0:02:42.3]} 14. Rfd1 {[%clk 0:02:44.4]} 14... Rfd8 {[%clk 0:02:38]} 15. Rd2
{[%clk 0:02:12.6]} 15... Qb8 {[%clk 0:02:17.2]} 16. a4 {[%clk 0:02:02.3]} 16...
Bc6 {[%clk 0:02:15.8]} 17. e4 {[%clk 0:01:59.1]} 17... Ne8 {[%clk 0:02:15.5]}
18. Nd5 {[%clk 0:01:54.8]} 18... exd5 {[%clk 0:02:14.7]} 19. exd5 {[%clk
0:01:51.1]} 19... Bd7 {[%clk 0:02:14.9]} 20. Re1 {[%clk 0:01:44.8]} 20... Bf6
{[%clk 0:02:14.5]} 21. Qf4 {[%clk 0:01:44.6]} 21... Bxb2 {[%clk 0:02:13.9]} 22.
Rxb2 {[%clk 0:01:45.5]} 22... Nf6 {[%clk 0:02:14.3]} 23. Rbe2 {[%clk 0:01:45.3]}
23... Re8 {[%clk 0:02:13.3]} 24. h3 {[%clk 0:01:40.2]} 24... h6 {[%clk
0:02:09.6]} 25. g4 {[%clk 0:01:39.8]} 25... Rxe2 {[%clk 0:02:08.6]} 26. Rxe2
{[%clk 0:01:39.5]} 26... Re8 {[%clk 0:02:08.7]} 27. Rxe8+ {[%clk 0:01:39.6]}
27... Bxe8 {[%clk 0:02:09.6]} 28. Qe3 {[%clk 0:01:37.1]} 28... b5 {[%clk
0:02:08]} 29. cxb5 {[%clk 0:01:37.1]} 29... axb5 {[%clk 0:02:08.9]} 30. a5
{[%clk 0:01:38]} 30... Qc8 {[%clk 0:01:57.3]} 31. b4 {[%clk 0:01:36.4]} 31...
Nd7 {[%clk 0:01:52.6]} 32. Qe7 {[%clk 0:01:30.4]} 32... Ne5 {[%clk 0:01:47.2]}
33. Be4 {[%clk 0:01:19.6]} 33... Qc1+ {[%clk 0:01:44.7]} 34. Kg2 {[%clk
0:01:19.5]} 34... Qc8 {[%clk 0:01:34.7]} 35. a6 {[%clk 0:01:14.1]} 35... Qd7
{[%clk 0:00:55.5]} 36. Qxd7 {[%clk 0:00:30.1]} 36... Nxd7 {[%clk 0:00:56.4]} 37.
a7 {[%clk 0:00:30.7]} 37... Nb6 {[%clk 0:00:55.1]} 38. Bf5 {[%clk 0:00:31.6]}
38... Kf8 {[%clk 0:00:39.3]} 39. Bc8 {[%clk 0:00:31.4]} 39... Ke7 {[%clk
0:00:39.1]} 40. Bb7 {[%clk 0:00:31.8]} 40... Kd8 {[%clk 0:00:39.3]} 41. a8=Q+
{[%clk 0:00:14.6]} 41... Nxa8 {[%clk 0:00:39.4]} 42. Bxa8 {[%clk 0:00:15.5]}
42... Kc7 {[%clk 0:00:40.3]} 43. Kf3 {[%clk 0:00:15.8]} 43... Kb8 {[%clk
0:00:39.8]} 44. Bc6 {[%clk 0:00:16.1]} 44... Bxc6 {[%clk 0:00:40.3]} 45. dxc6
{[%clk 0:00:17]} 45... Kc7 {[%clk 0:00:41.2]} 46. Ke4 {[%clk 0:00:17.9]} 46...
Kxc6 {[%clk 0:00:42.1]} 47. Kd4 {[%clk 0:00:18.5]} 47... Kc7 {[%clk 0:00:40.2]}
48. Kd5 {[%clk 0:00:17.6]} 48... Kd7 {[%clk 0:00:40.5]} 49. f4 {[%clk
0:00:18.1]} 49... Kc7 {[%clk 0:00:34.6]} 50. h4 {[%clk 0:00:17.8]} 50... g6
{[%clk 0:00:28.8]} 51. Kd4 {[%clk 0:00:12.4]} 51... Kc6 {[%clk 0:00:28.2]} 52.
Ke4 {[%clk 0:00:12.5]} 52... Kc7 {[%clk 0:00:18.4]} 53. Kd5 {[%clk 0:00:12.5]}
53... Kd7 {[%clk 0:00:18.8]} 54. Kd4 {[%clk 0:00:12.9]} 54... Ke6 {[%clk
0:00:19.2]} 55. Ke4 {[%clk 0:00:13.3]} 55... d5+ {[%clk 0:00:16.9]} 56. Kd4
{[%clk 0:00:13.7]} 56... Kd6 {[%clk 0:00:17.4]} 57. h5 {[%clk 0:00:10.4]} 57...
gxh5 {[%clk 0:00:17.2]} 58. gxh5 {[%clk 0:00:10.5]} 58... Ke6 {[%clk 0:00:08.4]}
59. Kc5 {[%clk 0:00:09.3]} 59... d4 {[%clk 0:00:04.2]} 60. Kxd4 {[%clk
0:00:07.5]} 60... Kd6 {[%clk 0:00:04.3]} 61. f5 {[%clk 0:00:03.6]} 61... f6
{[%clk 0:00:02.4]} 62. Ke4 {[%clk 0:00:04.1]} 62... Kc6 {[%clk 0:00:02.5]} 63.
Kd4 {[%clk 0:00:05]} 63... Kd6 {[%clk 0:00:01.6]} 64. Ke4 {[%clk 0:00:05.3]}
64... Kc6 {[%clk 0:00:01.9]} 65. Kd4 {[%clk 0:00:05.7]} 65... Kd6 {[%clk
0:00:01.3]} 1/2-1/2

[Event "*** SCC Grand Prix: Titled Tuesday Blitz"]
[Site "Chess.com"]
[Date "2020.06.23"]
[Round "6"]
[White "Omk124"]
[Black "Ze-Pequeno"]
[Result "1-0"]
[WhiteElo "2385"]
[BlackElo "2170"]
[TimeControl "180+1"]
[EndTime "11:07:46 PDT"]
[Termination "Omk124 won on time"]

1. e4 {[%clk 0:02:23.6]} 1... Nf6 {[%clk 0:02:57.1]} 2. e5 {[%clk 0:02:23.3]}
2... Nd5 {[%clk 0:02:56.5]} 3. d4 {[%clk 0:02:24]} 3... d6 {[%clk 0:02:56.5]} 4.
c4 {[%clk 0:02:24.1]} 4... Nb6 {[%clk 0:02:56.3]} 5. exd6 {[%clk 0:02:24.3]}
5... exd6 {[%clk 0:02:57.2]} 6. Nf3 {[%clk 0:02:23.9]} 6... Be7 {[%clk
0:02:57.4]} 7. Be2 {[%clk 0:02:21.8]} 7... O-O {[%clk 0:02:56.8]} 8. O-O {[%clk
0:02:22.4]} 8... Bg4 {[%clk 0:02:55.4]} 9. b3 {[%clk 0:02:22.3]} 9... Re8 {[%clk
0:02:52.2]} 10. Bb2 {[%clk 0:02:21.3]} 10... Bf6 {[%clk 0:02:49.8]} 11. Nbd2
{[%clk 0:02:20.9]} 11... Nc6 {[%clk 0:02:47]} 12. h3 {[%clk 0:02:21.3]} 12...
Bh5 {[%clk 0:02:46.5]} 13. Re1 {[%clk 0:02:21.5]} 13... a5 {[%clk 0:02:43.4]}
14. a3 {[%clk 0:02:19.6]} 14... d5 {[%clk 0:02:25.2]} 15. c5 {[%clk 0:02:11.9]}
15... Nd7 {[%clk 0:02:24.8]} 16. Qc1 {[%clk 0:02:09.5]} 16... Nf8 {[%clk
0:02:17.2]} 17. Bc3 {[%clk 0:02:08.5]} 17... Ne6 {[%clk 0:02:15.1]} 18. Qb2
{[%clk 0:02:08.5]} 18... Nf4 {[%clk 0:02:09]} 19. Bf1 {[%clk 0:02:08.2]} 19...
Qd7 {[%clk 0:02:06.8]} 20. b4 {[%clk 0:02:06.8]} 20... axb4 {[%clk 0:02:03.2]}
21. axb4 {[%clk 0:02:07.7]} 21... Rxa1 {[%clk 0:01:58.9]} 22. Qxa1 {[%clk
0:02:07.9]} 22... Rxe1 {[%clk 0:01:49.5]} 23. Qxe1 {[%clk 0:02:08.8]} 23... h6
{[%clk 0:01:44.9]} 24. b5 {[%clk 0:02:08.4]} 24... Ne7 {[%clk 0:01:44]} 25. Qe3
{[%clk 0:02:04.8]} 25... g5 {[%clk 0:01:28.2]} 26. Ne5 {[%clk 0:02:03.8]} 26...
Qe6 {[%clk 0:01:26.7]} 27. Ndf3 {[%clk 0:02:00.6]} 27... c6 {[%clk 0:01:18.9]}
28. b6 {[%clk 0:01:59.1]} 28... Bxf3 {[%clk 0:01:05.5]} 29. Nxf3 {[%clk
0:01:57.4]} 29... Qd7 {[%clk 0:00:59.4]} 30. Ne5 {[%clk 0:01:53.5]} 30... Qe6
{[%clk 0:00:59.2]} 31. Kh2 {[%clk 0:01:41.3]} 31... Nf5 {[%clk 0:00:58.7]} 32.
Qd2 {[%clk 0:01:38.9]} 32... Bxe5 {[%clk 0:00:54.3]} 33. dxe5 {[%clk 0:01:39.2]}
33... Ng6 {[%clk 0:00:53]} 34. Qa2 {[%clk 0:01:27.2]} 34... Kg7 {[%clk
0:00:43.5]} 35. Bd3 {[%clk 0:01:10.1]} 35... Nxe5 {[%clk 0:00:41.3]} 36. Ba6
{[%clk 0:00:59.9]} 36... d4 {[%clk 0:00:29.3]} 37. Qxe6 {[%clk 0:00:58.1]} 37...
fxe6 {[%clk 0:00:29.7]} 38. Ba5 {[%clk 0:00:15.9]} 38... Nd7 {[%clk 0:00:19.9]}
39. Bxb7 {[%clk 0:00:15.3]} 39... Nxc5 {[%clk 0:00:20.3]} 40. Bxc6 {[%clk
0:00:15.8]} 40... Kf6 {[%clk 0:00:19.8]} 41. b7 {[%clk 0:00:15.8]} 41... Na6
{[%clk 0:00:19.2]} 42. Bc7 {[%clk 0:00:15.1]} 42... d3 {[%clk 0:00:17.5]} 43.
b8=Q {[%clk 0:00:15.3]} 43... Nxb8 {[%clk 0:00:17]} 44. Bxb8 {[%clk 0:00:16.2]}
44... d2 {[%clk 0:00:17.5]} 45. Ba4 {[%clk 0:00:16.6]} 45... Nd4 {[%clk
0:00:17.8]} 46. Ba7 {[%clk 0:00:16.6]} 46... e5 {[%clk 0:00:18]} 47. Bxd4 {[%clk
0:00:16.3]} 47... exd4 {[%clk 0:00:18.9]} 48. Kg1 {[%clk 0:00:16.9]} 48... Ke5
{[%clk 0:00:19.8]} 49. Kf1 {[%clk 0:00:17.5]} 49... d3 {[%clk 0:00:20.1]} 50.
Bd1 {[%clk 0:00:17.7]} 50... Kd4 {[%clk 0:00:20.3]} 51. f3 {[%clk 0:00:17.6]}
51... Kc3 {[%clk 0:00:20.7]} 52. Kf2 {[%clk 0:00:17.8]} 52... Kb2 {[%clk
0:00:21.3]} 53. Ke3 {[%clk 0:00:14.8]} 53... Kc1 {[%clk 0:00:22.2]} 54. Ba4
{[%clk 0:00:14.7]} 54... d1=Q {[%clk 0:00:22.6]} 55. Bxd1 {[%clk 0:00:15.4]}
55... Kxd1 {[%clk 0:00:23.5]} 56. Kxd3 {[%clk 0:00:16.3]} 56... Ke1 {[%clk
0:00:24.2]} 57. Ke4 {[%clk 0:00:16.3]} 57... Kf2 {[%clk 0:00:24.6]} 58. g4
{[%clk 0:00:13.8]} 58... Kg3 {[%clk 0:00:24.3]} 59. Kf5 {[%clk 0:00:14.2]} 59...
Kxf3 {[%clk 0:00:23.7]} 60. Kg6 {[%clk 0:00:14.7]} 60... Kg3 {[%clk 0:00:23.7]}
61. Kxh6 {[%clk 0:00:15.6]} 61... Kh4 {[%clk 0:00:23.8]} 62. Kg6 {[%clk
0:00:16]} 62... Kxh3 {[%clk 0:00:23.3]} 63. Kxg5 {[%clk 0:00:16.9]} 1-0